[Event "*** Qualifier 4: Titled Tuesday 3|2 Blitz"]
[Site "Chess.com"]
[Date "2017.04.25"]
[Round "7"]
[White "Rock700chess"]
[Black "WeiYi1999"]
[Result "1-0"]
[WhiteElo "2269"]
[BlackElo "2072"]
[TimeControl "180+2"]
[EndTime "14:30:44 PDT"]
[Termination "Rock700chess won by resignation"]

1. e4 {[%clk 0:03:02]} 1... e5 {[%clk 0:02:58.3]} 2. Nf3 {[%clk 0:03:02.2]} 2...
Nc6 {[%clk 0:02:59.3]} 3. Bc4 {[%clk 0:03:01.9]} 3... Bc5 {[%clk 0:02:59.8]} 4.
c3 {[%clk 0:03:02.3]} 4... Nf6 {[%clk 0:03:00.6]} 5. d3 {[%clk 0:03:03.7]} 5...
h6 {[%clk 0:03:01]} 6. Bb3 {[%clk 0:03:03.5]} 6... d6 {[%clk 0:03:00]} 7. h3
{[%clk 0:03:03.4]} 7... a5 {[%clk 0:02:58.7]} 8. Nbd2 {[%clk 0:03:02.5]} 8...
O-O {[%clk 0:02:59.1]} 9. Qe2 {[%clk 0:03:00.4]} 9... b5 {[%clk 0:02:56.7]} 10.
Bc2 {[%clk 0:02:58.4]} 10... a4 {[%clk 0:02:52.7]} 11. g4 {[%clk 0:02:52.2]}
11... b4 {[%clk 0:02:32.8]} 12. Nf1 {[%clk 0:02:45.2]} 12... Be6 {[%clk
0:02:25.8]} 13. Ng3 {[%clk 0:02:43.3]} 13... b3 {[%clk 0:02:23.1]} 14. axb3
{[%clk 0:02:42.4]} 14... axb3 {[%clk 0:02:25]} 15. Rxa8 {[%clk 0:02:41.7]} 15...
Qxa8 {[%clk 0:02:26.8]} 16. Bd1 {[%clk 0:02:40.8]} 16... Qa1 {[%clk 0:02:19.6]}
17. Qd2 {[%clk 0:02:41.9]} 17... Ne7 {[%clk 0:02:10.4]} 18. g5 {[%clk
0:02:32.6]} 18... hxg5 {[%clk 0:02:12.3]} 19. h4 {[%clk 0:02:29]} 19... Ng6
{[%clk 0:02:14.2]} 20. hxg5 {[%clk 0:02:27.8]} 20... Nh7 {[%clk 0:02:10]} 21.
Kf1 {[%clk 0:02:09.9]} 21... f6 {[%clk 0:02:06.6]} 22. Nf5 {[%clk 0:02:08.5]}
22... fxg5 {[%clk 0:02:03]} 23. Nxg5 {[%clk 0:02:00.7]} 23... Nxg5 {[%clk
0:01:55.6]} 24. Qxg5 {[%clk 0:01:59.1]} 24... Rf6 {[%clk 0:01:57]} 25. Kg2
{[%clk 0:01:52.6]} 25... c6 {[%clk 0:01:47.3]} 26. Bh5 {[%clk 0:01:50.5]} 26...
Bxf5 {[%clk 0:01:43.1]} 27. exf5 {[%clk 0:01:52.4]} 27... Ne7 {[%clk 0:01:41.6]}
28. Bg4 {[%clk 0:01:47.1]} 28... Qa7 {[%clk 0:01:37.6]} 29. Qh5 {[%clk
0:01:45.4]} 29... Kf8 {[%clk 0:01:31.2]} 30. Qh8+ {[%clk 0:01:37.9]} 30... Ng8
{[%clk 0:01:32.4]} 31. Bg5 {[%clk 0:01:39.2]} 31... Rf7 {[%clk 0:01:27.9]} 32.
Rh7 {[%clk 0:01:24.7]} 32... Bxf2 {[%clk 0:01:24]} 33. f6 {[%clk 0:01:25.9]}
33... Bg3 {[%clk 0:01:16.8]} 34. fxg7+ {[%clk 0:01:24.7]} 34... Rxg7 {[%clk
0:01:14.1]} 35. Qxg7+ {[%clk 0:01:26.1]} 35... Qxg7 {[%clk 0:01:11.4]} 36. Rxg7
{[%clk 0:01:28]} 36... Kxg7 {[%clk 0:01:13.3]} 37. Kxg3 {[%clk 0:01:28.6]} 37...
Kg6 {[%clk 0:01:09.2]} 38. Bd2 {[%clk 0:01:28.1]} 38... Nf6 {[%clk 0:01:09.9]}
39. Be2 {[%clk 0:01:24.1]} 39... e4 {[%clk 0:01:10.7]} 40. d4 {[%clk 0:01:23.7]}
40... d5 {[%clk 0:01:02]} 41. Bd1 {[%clk 0:01:21.5]} 41... Kf5 {[%clk
0:00:56.9]} 42. Bxb3 {[%clk 0:01:22.5]} 42... Nh5+ {[%clk 0:00:57.3]} 43. Kf2
{[%clk 0:01:22.1]} 43... Nf6 {[%clk 0:00:55.5]} 44. Ba4 {[%clk 0:01:23.4]} 44...
Ng4+ {[%clk 0:00:54.5]} 45. Ke2 {[%clk 0:01:19.8]} 1-0

[Event "*** Qualifier 4: Titled Tuesday 3|2 Blitz"]
[Site "Chess.com"]
[Date "2017.04.25"]
[Round "7"]
[White "kharov2001"]
[Black "rasool78"]
[Result "0-1"]
[WhiteElo "1934"]
[BlackElo "2227"]
[TimeControl "180+2"]
[EndTime "14:30:59 PDT"]
[Termination "rasool78 won by resignation"]

1. e4 {[%clk 0:03:02]} 1... g6 {[%clk 0:03:00.1]} 2. d4 {[%clk 0:03:01.3]} 2...
Bg7 {[%clk 0:02:58.6]} 3. Nc3 {[%clk 0:03:01.9]} 3... c5 {[%clk 0:02:59.1]} 4.
dxc5 {[%clk 0:02:59.8]} 4... Bxc3+ {[%clk 0:02:58.4]} 5. bxc3 {[%clk 0:02:59.6]}
5... Qa5 {[%clk 0:03:00]} 6. Qd4 {[%clk 0:02:59.8]} 6... Nf6 {[%clk 0:03:00.1]}
7. e5 {[%clk 0:03:00.8]} 7... Nc6 {[%clk 0:03:00.1]} 8. Qd2 {[%clk 0:02:42.9]}
8... Ne4 {[%clk 0:02:51.5]} 9. Qd3 {[%clk 0:02:41.7]} 9... Nxc5 {[%clk
0:02:38.3]} 10. Qb5 {[%clk 0:02:42]} 10... Qxc3+ {[%clk 0:02:38]} 11. Kd1 {[%clk
0:02:40.5]} 11... Qd4+ {[%clk 0:02:26.8]} 12. Bd3 {[%clk 0:02:34.7]} 12... Nxd3
{[%clk 0:02:24.7]} 13. Qxd3 {[%clk 0:02:35.4]} 13... Qxa1 {[%clk 0:02:23.9]} 14.
Nf3 {[%clk 0:02:36.3]} 14... Nxe5 {[%clk 0:02:14.7]} 15. Nxe5 {[%clk 0:02:36.4]}
15... Qxe5 {[%clk 0:02:15.3]} 16. Re1 {[%clk 0:02:36.4]} 16... Qf6 {[%clk
0:02:05.1]} 17. Be3 {[%clk 0:02:34.2]} 17... O-O {[%clk 0:01:58.1]} 18. Bd4
{[%clk 0:02:34.6]} 18... Qf5 {[%clk 0:01:37.8]} 19. Qc3 {[%clk 0:02:23.4]} 19...
d6 {[%clk 0:01:20.7]} 20. Rxe7 {[%clk 0:02:19.8]} 20... Be6 {[%clk 0:00:47.9]}
21. Qe3 {[%clk 0:02:15.7]} 21... Rac8 {[%clk 0:00:37]} 22. c3 {[%clk 0:02:15.8]}
22... Qb1+ {[%clk 0:00:25.4]} 23. Ke2 {[%clk 0:02:15]} 23... Qxa2+ {[%clk
0:00:25.8]} 24. Kf3 {[%clk 0:02:15.5]} 24... Qd5+ {[%clk 0:00:26.2]} 25. Kg3
{[%clk 0:02:14.5]} 25... Qf5 {[%clk 0:00:19]} 26. h3 {[%clk 0:02:09.7]} 26... g5
{[%clk 0:00:20.1]} 27. Rxb7 {[%clk 0:01:48.6]} 27... Qf4+ {[%clk 0:00:20.4]} 28.
Qxf4 {[%clk 0:01:48.3]} 28... gxf4+ {[%clk 0:00:22]} 29. Kxf4 {[%clk 0:01:50]}
29... a5 {[%clk 0:00:23.6]} 30. Rb5 {[%clk 0:01:47.1]} 30... Rc5 {[%clk
0:00:20.1]} 31. Bxc5 {[%clk 0:01:46.2]} 31... dxc5 {[%clk 0:00:21.9]} 32. Rxa5
{[%clk 0:01:47.6]} 32... c4 {[%clk 0:00:23.1]} 33. g4 {[%clk 0:01:47.9]} 33...
Rd8 {[%clk 0:00:24.5]} 34. Ke5 {[%clk 0:01:48.2]} 34... Rd3 {[%clk 0:00:23.5]}
35. Kf6 {[%clk 0:01:46.4]} 35... Rf3+ {[%clk 0:00:23.5]} 36. Kg5 {[%clk
0:01:47.2]} 36... Kg7 {[%clk 0:00:23.2]} 37. h4 {[%clk 0:01:48.3]} 37... Rxf2
{[%clk 0:00:23.7]} 38. h5 {[%clk 0:01:48.9]} 38... h6+ {[%clk 0:00:24.9]} 39.
Kh4 {[%clk 0:01:48.4]} 39... Rf4 {[%clk 0:00:26.1]} 40. Kg3 {[%clk 0:01:47.3]}
40... Rxg4+ {[%clk 0:00:27]} 41. Kf3 {[%clk 0:01:47.4]} 41... Rg5 {[%clk
0:00:28.5]} 42. Ra7 {[%clk 0:01:44.7]} 42... Rxh5 {[%clk 0:00:29.1]} 43. Kf4
{[%clk 0:01:45]} 43... Rd5 {[%clk 0:00:29.8]} 44. Ke4 {[%clk 0:01:45.3]} 44...
Rd3 {[%clk 0:00:30.6]} 45. Ra3 {[%clk 0:01:44]} 45... h5 {[%clk 0:00:32]} 46.
Kf4 {[%clk 0:01:44.6]} 46... h4 {[%clk 0:00:33.3]} 47. Ra1 {[%clk 0:01:44.7]}
47... h3 {[%clk 0:00:34.6]} 48. Rg1+ {[%clk 0:01:42.1]} 48... Kf6 {[%clk
0:00:36]} 49. Rg2 {[%clk 0:01:38.3]} 49... hxg2 {[%clk 0:00:33.6]} 0-1

[Event "*** Qualifier 4: Titled Tuesday 3|2 Blitz"]
[Site "Chess.com"]
[Date "2017.04.25"]
[Round "7"]
[White "PowerThinking2650"]
[Black "Marcus_Harvey"]
[Result "0-1"]
[WhiteElo "2301"]
[BlackElo "2509"]
[TimeControl "180+2"]
[EndTime "14:31:29 PDT"]
[Termination "Marcus_Harvey won on time"]

1. e4 {[%clk 0:03:02]} 1... e6 {[%clk 0:03:00.9]} 2. d4 {[%clk 0:03:02.3]} 2...
d5 {[%clk 0:03:02.2]} 3. Nd2 {[%clk 0:03:03.9]} 3... c5 {[%clk 0:03:01.2]} 4.
Ngf3 {[%clk 0:03:01.7]} 4... Nc6 {[%clk 0:03:02.4]} 5. exd5 {[%clk 0:03:01.4]}
5... exd5 {[%clk 0:03:04.3]} 6. Bb5 {[%clk 0:03:00.2]} 6... Bd6 {[%clk
0:03:05.1]} 7. O-O {[%clk 0:02:58.4]} 7... Ne7 {[%clk 0:03:06.1]} 8. dxc5 {[%clk
0:02:59.4]} 8... Bxc5 {[%clk 0:03:08]} 9. Nb3 {[%clk 0:03:00.5]} 9... Bd6 {[%clk
0:03:09.6]} 10. h3 {[%clk 0:02:53.3]} 10... h6 {[%clk 0:03:08.8]} 11. Nbd4
{[%clk 0:02:44]} 11... O-O {[%clk 0:03:09.4]} 12. c3 {[%clk 0:02:39.3]} 12...
Bc7 {[%clk 0:03:10.3]} 13. Bd3 {[%clk 0:02:36.2]} 13... Nxd4 {[%clk 0:03:06.6]}
14. Nxd4 {[%clk 0:02:10.1]} 14... Qd6 {[%clk 0:03:07.2]} 15. f4 {[%clk
0:01:49.1]} 15... Bb6 {[%clk 0:03:03.9]} 16. Kh1 {[%clk 0:01:44.9]} 16... Bxd4
{[%clk 0:02:54.3]} 17. cxd4 {[%clk 0:01:45.6]} 17... Bf5 {[%clk 0:02:55.3]} 18.
g4 {[%clk 0:01:27.1]} 18... Be4+ {[%clk 0:02:47.8]} 19. Bxe4 {[%clk 0:01:13.4]}
19... dxe4 {[%clk 0:02:49.7]} 20. Be3 {[%clk 0:01:12.4]} 20... f5 {[%clk
0:02:47.5]} 21. Rc1 {[%clk 0:00:46.9]} 21... Nd5 {[%clk 0:02:45.2]} 22. Qd2
{[%clk 0:00:43.1]} 22... fxg4 {[%clk 0:02:42.8]} 23. hxg4 {[%clk 0:00:42.6]}
23... Rad8 {[%clk 0:02:43.7]} 24. Kg2 {[%clk 0:00:33.6]} 24... Nxe3+ {[%clk
0:02:33.6]} 25. Qxe3 {[%clk 0:00:34.1]} 25... Qxd4 {[%clk 0:02:35.2]} 26. Qxd4
{[%clk 0:00:35.2]} 26... Rxd4 {[%clk 0:02:35.3]} 27. Rc2 {[%clk 0:00:18.2]}
27... e3 {[%clk 0:02:28.1]} 28. Kg3 {[%clk 0:00:18.2]} 28... Re4 {[%clk
0:02:29.5]} 29. Re2 {[%clk 0:00:18]} 29... g5 {[%clk 0:02:28.4]} 30. f5 {[%clk
0:00:16.6]} 30... h5 {[%clk 0:02:06.3]} 31. gxh5 {[%clk 0:00:16.4]} 31... Kg7
{[%clk 0:02:07.8]} 32. f6+ {[%clk 0:00:15.2]} 32... Rxf6 {[%clk 0:02:06.2]} 33.
Rxf6 {[%clk 0:00:16.1]} 33... Kxf6 {[%clk 0:02:07.5]} 34. Kf3 {[%clk 0:00:17.2]}
34... Rh4 {[%clk 0:01:30.6]} 35. Rxe3 {[%clk 0:00:17.5]} 35... Rxh5 {[%clk
0:01:32]} 36. Kg3 {[%clk 0:00:14.7]} 36... Rh7 {[%clk 0:01:31.6]} 37. Ra3 {[%clk
0:00:13.6]} 37... a6 {[%clk 0:01:30.5]} 38. Rf3+ {[%clk 0:00:14.5]} 38... Kg6
{[%clk 0:01:31.7]} 39. Rb3 {[%clk 0:00:14.9]} 39... Rf7 {[%clk 0:01:31.5]} 40.
Rb6+ {[%clk 0:00:15.1]} 40... Kh5 {[%clk 0:01:32.9]} 41. a4 {[%clk 0:00:13.2]}
41... Rd7 {[%clk 0:01:32.7]} 42. Rb3 {[%clk 0:00:10.1]} 42... Kg6 {[%clk
0:01:32.5]} 43. Rb6+ {[%clk 0:00:10.3]} 43... Kf5 {[%clk 0:01:33.8]} 44. Rb3
{[%clk 0:00:10.8]} 44... Ke4 {[%clk 0:01:31]} 45. Kg4 {[%clk 0:00:10.8]} 45...
Rg7 {[%clk 0:01:32.1]} 46. Rb6 {[%clk 0:00:09.5]} 46... Kd4 {[%clk 0:01:32.3]}
47. b4 {[%clk 0:00:09.3]} 47... Kc4 {[%clk 0:01:32.7]} 48. a5 {[%clk 0:00:08.5]}
48... Rd7 {[%clk 0:01:22]} 49. Kxg5 {[%clk 0:00:08.6]} 49... Rd5+ {[%clk
0:01:22.8]} 50. Kf6 {[%clk 0:00:08.4]} 50... Rb5 {[%clk 0:01:24.7]} 51. Re6
{[%clk 0:00:03.3]} 51... Kxb4 {[%clk 0:01:25.8]} 0-1

[Event "*** Qualifier 4: Titled Tuesday 3|2 Blitz"]
[Site "Chess.com"]
[Date "2017.04.25"]
[Round "7"]
[White "EgorGeroev"]
[Black "Hikaru"]
[Result "0-1"]
[WhiteElo "2552"]
[BlackElo "2937"]
[TimeControl "180+2"]
[EndTime "14:31:32 PDT"]
[Termination "Hikaru won on time"]

1. e4 {[%clk 0:03:02]} 1... e5 {[%clk 0:03:00.2]} 2. Nf3 {[%clk 0:03:02.3]} 2...
Nc6 {[%clk 0:03:01.8]} 3. d4 {[%clk 0:03:03.5]} 3... exd4 {[%clk 0:03:02.8]} 4.
Nxd4 {[%clk 0:03:05.4]} 4... Bc5 {[%clk 0:03:04.2]} 5. Be3 {[%clk 0:03:04.5]}
5... Qf6 {[%clk 0:03:03.8]} 6. c3 {[%clk 0:03:06.1]} 6... Nge7 {[%clk
0:03:03.4]} 7. Bb5 {[%clk 0:03:07.7]} 7... Bb6 {[%clk 0:02:57.2]} 8. O-O {[%clk
0:03:07.7]} 8... O-O {[%clk 0:02:57.7]} 9. a4 {[%clk 0:03:04.2]} 9... Nxd4
{[%clk 0:02:49.5]} 10. cxd4 {[%clk 0:03:03.6]} 10... c6 {[%clk 0:02:48.9]} 11.
a5 {[%clk 0:02:53.2]} 11... Bc7 {[%clk 0:02:47.7]} 12. Bd3 {[%clk 0:02:53.5]}
12... d5 {[%clk 0:02:46.8]} 13. e5 {[%clk 0:02:53.8]} 13... Qh4 {[%clk
0:02:47.5]} 14. Nd2 {[%clk 0:02:43.8]} 14... Nf5 {[%clk 0:02:34.9]} 15. Nf3
{[%clk 0:02:41.3]} 15... Nxe3 {[%clk 0:02:35.5]} 16. fxe3 {[%clk 0:02:40]} 16...
Qh6 {[%clk 0:02:36.4]} 17. Qe2 {[%clk 0:01:41.7]} 17... f6 {[%clk 0:02:36.7]}
18. exf6 {[%clk 0:01:40.5]} 18... Rxf6 {[%clk 0:02:22.1]} 19. Ne5 {[%clk
0:01:40.9]} 19... Rxf1+ {[%clk 0:02:05.6]} 20. Rxf1 {[%clk 0:01:40.1]} 20...
Bxe5 {[%clk 0:02:04.7]} 21. dxe5 {[%clk 0:01:39.3]} 21... Be6 {[%clk 0:02:06.3]}
22. Qf3 {[%clk 0:01:27.7]} 22... Qg5 {[%clk 0:02:03.6]} 23. Qf4 {[%clk
0:01:27.8]} 23... Qe7 {[%clk 0:02:04.6]} 24. h4 {[%clk 0:01:16.4]} 24... Rd8
{[%clk 0:01:44.8]} 25. h5 {[%clk 0:01:16.3]} 25... h6 {[%clk 0:01:46.2]} 26. Bg6
{[%clk 0:01:12.5]} 26... c5 {[%clk 0:01:46.6]} 27. Rf2 {[%clk 0:00:50.1]} 27...
Kh8 {[%clk 0:01:47.2]} 28. Rf3 {[%clk 0:00:30.6]} 28... b5 {[%clk 0:01:47.2]}
29. axb6 {[%clk 0:00:29.1]} 29... axb6 {[%clk 0:01:49.1]} 30. Rf1 {[%clk
0:00:29]} 30... b5 {[%clk 0:01:48.2]} 31. Rf2 {[%clk 0:00:29.5]} 31... b4 {[%clk
0:01:49.3]} 32. Rf1 {[%clk 0:00:30.2]} 32... Bg8 {[%clk 0:01:50.2]} 33. Rf2
{[%clk 0:00:30.3]} 33... c4 {[%clk 0:01:48.5]} 34. Rf3 {[%clk 0:00:30.2]} 34...
c3 {[%clk 0:01:47.2]} 35. bxc3 {[%clk 0:00:29.7]} 35... bxc3 {[%clk 0:01:49.1]}
36. Rf2 {[%clk 0:00:31]} 36... Rc8 {[%clk 0:01:49.5]} 37. Qf5 {[%clk 0:00:23.7]}
37... Be6 {[%clk 0:01:43.4]} 38. Qf4 {[%clk 0:00:23.6]} 38... Bg8 {[%clk
0:01:37.4]} 39. Qf5 {[%clk 0:00:24.2]} 39... Rb8 {[%clk 0:01:38.9]} 40. Rc2
{[%clk 0:00:19.8]} 40... Rb1+ {[%clk 0:01:38.1]} 41. Kh2 {[%clk 0:00:19.8]}
41... Qh4+ {[%clk 0:01:27.4]} 42. Qh3 {[%clk 0:00:20.5]} 42... Qg5 {[%clk
0:01:28.9]} 43. Bf5 {[%clk 0:00:05]} 43... Bh7 {[%clk 0:01:01.5]} 44. Bxh7
{[%clk 0:00:04.2]} 44... Qxe5+ {[%clk 0:01:03]} 45. g3 {[%clk 0:00:03.9]} 45...
Kxh7 {[%clk 0:00:57.7]} 46. Qg2 {[%clk 0:00:05.2]} 46... Qxh5+ {[%clk
0:00:56.3]} 0-1

[Event "*** Qualifier 4: Titled Tuesday 3|2 Blitz"]
[Site "Chess.com"]
[Date "2017.04.25"]
[Round "7"]
[White "iturrizaga"]
[Black "GGuseinov"]
[Result "0-1"]
[WhiteElo "2660"]
[BlackElo "2735"]
[TimeControl "180+2"]
[EndTime "14:31:47 PDT"]
[Termination "GGuseinov won on time"]

1. Nf3 {[%clk 0:03:02]} 1... g6 {[%clk 0:03:00.6]} 2. c4 {[%clk 0:03:03.9]} 2...
Bg7 {[%clk 0:03:01.8]} 3. g3 {[%clk 0:03:05.8]} 3... d6 {[%clk 0:02:58.9]} 4. d4
{[%clk 0:03:04.9]} 4... Nd7 {[%clk 0:02:58]} 5. Nc3 {[%clk 0:03:05.4]} 5... e5
{[%clk 0:02:58.7]} 6. Bg2 {[%clk 0:03:06.6]} 6... Ne7 {[%clk 0:02:59.7]} 7. O-O
{[%clk 0:03:07.6]} 7... O-O {[%clk 0:03:00.6]} 8. dxe5 {[%clk 0:03:09]} 8...
dxe5 {[%clk 0:02:59.9]} 9. Qc2 {[%clk 0:03:10.3]} 9... Nf5 {[%clk 0:02:59.3]}
10. Rd1 {[%clk 0:03:11.7]} 10... Nd4 {[%clk 0:03:00]} 11. Nxd4 {[%clk
0:03:13.3]} 11... exd4 {[%clk 0:03:00.1]} 12. Ne4 {[%clk 0:03:13.1]} 12... h6
{[%clk 0:02:47.9]} 13. c5 {[%clk 0:03:11.8]} 13... Re8 {[%clk 0:02:38.5]} 14. c6
{[%clk 0:03:09.7]} 14... bxc6 {[%clk 0:02:37.8]} 15. Qxc6 {[%clk 0:02:57.7]}
15... Rb8 {[%clk 0:02:37]} 16. Bf4 {[%clk 0:02:58.5]} 16... Bb7 {[%clk
0:02:30.9]} 17. Qc2 {[%clk 0:02:49.2]} 17... Qe7 {[%clk 0:02:30.2]} 18. Qxc7
{[%clk 0:02:26.4]} 18... Bxe4 {[%clk 0:02:23.1]} 19. Bxe4 {[%clk 0:02:08.1]}
19... Qxe4 {[%clk 0:02:23.6]} 20. Qxd7 {[%clk 0:02:08.5]} 20... Rxb2 {[%clk
0:02:23.7]} 21. Rd2 {[%clk 0:01:36]} 21... Rxd2 {[%clk 0:02:02.3]} 22. Bxd2
{[%clk 0:01:37.9]} 22... Rb8 {[%clk 0:01:59.7]} 23. Rc1 {[%clk 0:00:46.5]} 23...
Qxe2 {[%clk 0:01:51.5]} 24. Qxa7 {[%clk 0:00:44.1]} 24... Qe8 {[%clk 0:01:27.1]}
25. Re1 {[%clk 0:00:43.5]} 25... Qc8 {[%clk 0:01:24.7]} 26. Rc1 {[%clk
0:00:27.7]} 26... Qe8 {[%clk 0:01:23.4]} 27. Re1 {[%clk 0:00:26.8]} 27... Qc8
{[%clk 0:01:19.8]} 28. Rc1 {[%clk 0:00:27.3]} 28... Qd8 {[%clk 0:01:14.5]} 29.
a4 {[%clk 0:00:26]} 29... Rb2 {[%clk 0:01:03.4]} 30. Qa6 {[%clk 0:00:23.3]}
30... Qd5 {[%clk 0:00:51.6]} 31. Qc8+ {[%clk 0:00:04.8]} 31... Kh7 {[%clk
0:00:51.8]} 32. Rc2 {[%clk 0:00:06.4]} 32... Rb1+ {[%clk 0:00:40.2]} 33. Rc1
{[%clk 0:00:07.5]} 33... Rb3 {[%clk 0:00:39.2]} 34. a5 {[%clk 0:00:07.2]} 34...
d3 {[%clk 0:00:32.5]} 35. Rd1 {[%clk 0:00:06.4]} 35... Bd4 {[%clk 0:00:20.3]}
36. Be1 {[%clk 0:00:04.2]} 36... h5 {[%clk 0:00:14]} 37. Qc1 {[%clk 0:00:05]}
37... Qf3 {[%clk 0:00:12.4]} 38. Qf4 {[%clk 0:00:05.3]} 38... Qxd1 {[%clk
0:00:09.2]} 0-1

[Event "*** Qualifier 4: Titled Tuesday 3|2 Blitz"]
[Site "Chess.com"]
[Date "2017.04.25"]
[Round "7"]
[White "ABDELAZEEZ-M"]
[Black "bugsbunny444"]
[Result "0-1"]
[WhiteElo "2167"]
[BlackElo "2356"]
[TimeControl "180+2"]
[EndTime "14:31:48 PDT"]
[Termination "bugsbunny444 won by checkmate"]

1. d4 {[%clk 0:02:58.8]} 1... e6 {[%clk 0:03:01]} 2. c4 {[%clk 0:02:59.6]} 2...
b6 {[%clk 0:03:02.7]} 3. e4 {[%clk 0:02:58.4]} 3... Bb7 {[%clk 0:03:04.1]} 4.
Bd3 {[%clk 0:02:58.9]} 4... Bb4+ {[%clk 0:03:05.6]} 5. Bd2 {[%clk 0:02:58.8]}
5... Bxd2+ {[%clk 0:03:06.6]} 6. Nxd2 {[%clk 0:02:59]} 6... Nc6 {[%clk
0:03:06.5]} 7. Ngf3 {[%clk 0:02:59.1]} 7... Qf6 {[%clk 0:03:07.2]} 8. e5 {[%clk
0:02:58.4]} 8... Qf4 {[%clk 0:03:07.8]} 9. Be4 {[%clk 0:02:49.1]} 9... f5 {[%clk
0:03:03.1]} 10. g3 {[%clk 0:02:45.6]} 10... Qh6 {[%clk 0:02:55.3]} 11. Bc2
{[%clk 0:02:43.9]} 11... Nxd4 {[%clk 0:02:51.3]} 12. O-O {[%clk 0:02:33.9]}
12... Nxc2 {[%clk 0:02:19.7]} 13. Qxc2 {[%clk 0:02:34.3]} 13... Ne7 {[%clk
0:02:20.6]} 14. Rad1 {[%clk 0:02:31.3]} 14... O-O {[%clk 0:02:14.9]} 15. Qd3
{[%clk 0:02:26.8]} 15... Rad8 {[%clk 0:02:08.4]} 16. h4 {[%clk 0:02:26.1]} 16...
d5 {[%clk 0:01:45.5]} 17. exd6 {[%clk 0:02:17.2]} 17... Rxd6 {[%clk 0:01:45.8]}
18. Qe2 {[%clk 0:02:17.9]} 18... Rfd8 {[%clk 0:01:32.7]} 19. Rde1 {[%clk
0:02:16.3]} 19... Rxd2 {[%clk 0:01:22]} 20. Nxd2 {[%clk 0:02:16.8]} 20... Rxd2
{[%clk 0:01:23.1]} 21. Qxe6+ {[%clk 0:02:18.1]} 21... Qxe6 {[%clk 0:01:23.9]}
22. Rxe6 {[%clk 0:02:19.3]} 22... Kf7 {[%clk 0:01:19.9]} 23. Rfe1 {[%clk
0:02:20.3]} 23... Be4 {[%clk 0:00:58.7]} 24. Rxe7+ {[%clk 0:02:17]} 24... Kxe7
{[%clk 0:01:00.6]} 25. f3 {[%clk 0:02:18.2]} 25... Rxb2 {[%clk 0:00:54]} 26.
fxe4 {[%clk 0:02:19.2]} 26... fxe4 {[%clk 0:00:47.4]} 27. Rxe4+ {[%clk
0:02:19.8]} 27... Kd6 {[%clk 0:00:48.8]} 28. Rd4+ {[%clk 0:02:16.9]} 28... Kc6
{[%clk 0:00:45.8]} 29. h5 {[%clk 0:02:15.4]} 29... Rxa2 {[%clk 0:00:23.4]} 30.
Rg4 {[%clk 0:02:15.8]} 30... g6 {[%clk 0:00:24.8]} 31. hxg6 {[%clk 0:02:16.3]}
31... hxg6 {[%clk 0:00:26.3]} 32. Rxg6+ {[%clk 0:02:17.6]} 32... Kc5 {[%clk
0:00:27.9]} 33. Rg4 {[%clk 0:02:18.7]} 33... Rc2 {[%clk 0:00:22.1]} 34. Rg7
{[%clk 0:02:13.8]} 34... Kc6 {[%clk 0:00:14.2]} 35. Rg4 {[%clk 0:02:11.6]} 35...
a5 {[%clk 0:00:14.9]} 36. Rf4 {[%clk 0:02:11.5]} 36... Kc5 {[%clk 0:00:14.6]}
37. Rf7 {[%clk 0:02:10.2]} 37... c6 {[%clk 0:00:14.9]} 38. Rf5+ {[%clk
0:02:09.2]} 38... Kxc4 {[%clk 0:00:15.8]} 39. g4 {[%clk 0:02:09.9]} 39... a4
{[%clk 0:00:16.6]} 40. g5 {[%clk 0:02:11.2]} 40... a3 {[%clk 0:00:17.7]} 41. g6
{[%clk 0:02:12.3]} 41... a2 {[%clk 0:00:09.9]} 42. Rf1 {[%clk 0:02:13.3]} 42...
Re2 {[%clk 0:00:07.5]} 43. g7 {[%clk 0:02:13.9]} 43... Re8 {[%clk 0:00:08.4]}
44. Ra1 {[%clk 0:02:03.4]} 44... Kb3 {[%clk 0:00:09.3]} 45. Kf2 {[%clk
0:02:01.8]} 45... Rg8 {[%clk 0:00:10]} 46. Rg1 {[%clk 0:01:55.2]} 46... Kb2
{[%clk 0:00:10.1]} 47. Ke3 {[%clk 0:01:44.7]} 47... a1=Q {[%clk 0:00:11.4]} 48.
Rg2+ {[%clk 0:01:35.3]} 48... Kb3 {[%clk 0:00:11.4]} 49. Rg3 {[%clk 0:01:36.6]}
49... Rxg7 {[%clk 0:00:09.6]} 50. Rf3 {[%clk 0:01:36.9]} 50... Re7+ {[%clk
0:00:08.7]} 51. Kf4+ {[%clk 0:01:37.7]} 51... Kc4 {[%clk 0:00:09.8]} 52. Kg4
{[%clk 0:01:39]} 52... Re4+ {[%clk 0:00:09.8]} 53. Kg3 {[%clk 0:01:36.7]} 53...
Qg1+ {[%clk 0:00:09.7]} 54. Kh3 {[%clk 0:01:37.3]} 54... Qg4+ {[%clk 0:00:10.6]}
55. Kh2 {[%clk 0:01:38.7]} 55... Qxf3 {[%clk 0:00:11.6]} 56. Kg1 {[%clk
0:01:38.4]} 56... Re1+ {[%clk 0:00:12.1]} 57. Kh2 {[%clk 0:01:39.7]} 57... Rh1#
{[%clk 0:00:12.1]} 0-1